fUSD/lending_fUSD_20251012
["ID","MTS","AMOUNT","RATE_DAILY","PERIOD"]
[390992756,1760276340580,-500.0,0.00029586,120]
[390992757,1760276340630,-642.13,0.00029586,120]
[390992758,1760276340682,-500.0,0.00029586,120]
[390992759,1760276340740,-500.0,0.00029586,120]
[390992760,1760276340795,-642.13,0.00029586,120]
[390992761,1760276340848,-500.0,0.00029586,120]
[390992762,1760276340903,-500.0,0.00029586,120]
[390992763,1760276340956,-642.13,0.00029586,120]
[390992764,1760276341013,-500.0,0.00029586,120]
[390992765,1760276341069,-500.0,0.00029586,120]
[390992766,1760276341129,-642.13,0.00029586,120]
[390992767,1760276341196,-500.0,0.00029586,120]
[390992768,1760276341606,-500.0,0.00029586,120]
[390992769,1760276341663,-642.13,0.00029586,120]
[390992770,1760276341722,-500.0,0.00029586,120]
[390992771,1760276341784,-500.0,0.00029586,120]
[390992772,1760276341841,-642.13,0.00029586,120]
[390992773,1760276341895,-391.22874336,0.00029586,120]
[390992774,1760276341961,-500.0,0.00029586,120]
[390992775,1760276342021,-642.13,0.00029586,120]
[390992776,1760276342081,-500.0,0.00029586,120]
[390992777,1760276342136,-642.13,0.00029586,120]
[390992778,1760276342198,-500.0,0.00029586,120]
[390992779,1760276342266,-642.13,0.00029586,120]
[390992780,1760276342341,-500.0,0.00029586,120]
[390992781,1760276342401,-642.13,0.00029586,120]
[390992782,1760276342458,-500.0,0.00029586,120]
[390992783,1760276342514,-642.13,0.00029586,120]
[390992784,1760276342570,-500.0,0.00029586,120]
[390992785,1760276342627,-642.13,0.00029586,120]
[390992786,1760276342689,-500.0,0.00029586,120]
[390992787,1760276342753,-642.13,0.00029586,120]
[390992788,1760276342815,-500.0,0.00029586,120]
[390992789,1760276342874,-642.13,0.00029586,120]
[390992790,1760276342942,-500.0,0.00029586,120]
[390992791,1760276343013,-642.13,0.00029586,120]
[390992792,1760276343073,-500.0,0.00029586,120]
[390992793,1760276343141,-642.13,0.00029586,120]
[390992794,1760276343208,-642.15766161,0.00029586,120]
[390992795,1760276343278,-500.0,0.00029586,120]
[390992796,1760276343338,-500.0,0.00029586,120]
[390992797,1760276343397,-500.0,0.00029586,120]
[390992798,1760276343456,-500.0,0.00029586,120]
[390992799,1760276343513,-509.61379977,0.00029586,120]
[390992800,1760276343571,-3554.1,0.00029586,120]
[390992801,1760276343629,-3554.1,0.00029586,120]
[390992802,1760276343689,-3554.1,0.00029586,120]
[390992803,1760276343751,-3554.1,0.00029586,120]
[390992804,1760276343809,-3554.1,0.00029586,120]
[390992805,1760276343865,-3554.1,0.00029586,120]
[390992806,1760276343920,-3554.1,0.00029586,120]
[390992807,1760276343977,-3554.1,0.00029586,120]
[390992808,1760276344031,-3554.1,0.00029586,120]
[390992809,1760276344083,-3554.1,0.00029586,120]
[390992810,1760276344137,-3554.1,0.00029586,120]
[390992811,1760276344197,-3554.1,0.00029586,120]
[390992812,1760276344257,-3554.1,0.00029586,120]
[390992813,1760276344318,-3554.1,0.00029586,120]
[390992814,1760276344375,-3554.1,0.00029586,120]
[390992815,1760276344430,-3554.1,0.00029586,120]
[390992816,1760276344484,-500.0,0.00029586,120]
[390992817,1760276344540,-3554.1,0.00029586,120]
[390992818,1760276344595,-500.0,0.00029586,120]
[390992819,1760276344650,-3554.1,0.00029586,120]
[390992820,1760276344706,-500.0,0.00029586,120]
[390992821,1760276344762,-3554.1,0.00029586,120]
[390992822,1760276344819,-500.0,0.00029586,120]
[390992823,1760276344875,-3554.1,0.00029586,120]
[390992824,1760276344938,-500.0,0.00029586,120]
[390992825,1760276345004,-3554.1,0.00029586,120]
[390992826,1760276345069,-500.0,0.00029586,120]
[390992827,1760276345132,-500.0,0.00029586,120]
[390992828,1760276345196,-3554.1,0.00029586,120]
[390992829,1760276345258,-500.0,0.00029586,120]
[390992830,1760276345321,-500.0,0.00029586,120]
[390992831,1760276345382,-500.0,0.00029586,120]
[390992832,1760276345440,-3554.1,0.00029586,120]
[390992833,1760276345498,-500.0,0.00029586,120]
[390992834,1760276345553,-500.0,0.00029586,120]
[390992835,1760276345606,-3554.23608262,0.00029586,120]
[390992836,1760276345660,-500.0,0.00029586,120]
[390992837,1760276345716,-500.0,0.00029586,120]
[390992838,1760276345778,-500.0,0.00029586,120]
[390992839,1760276345836,-500.0,0.00029586,120]
[390992840,1760276345894,-500.0,0.00029586,120]
[390992841,1760276345958,-500.0,0.00029586,120]
[390992842,1760276346022,-500.0,0.00029586,120]
[390992843,1760276346088,-594.66020017,0.00029586,120]
[390992844,1760276346157,-500.0,0.00029586,120]
[390992845,1760276346223,-500.0,0.00029586,120]
[390992846,1760276346289,-500.0,0.00029586,120]
[390992847,1760276346350,-405.46768427,0.00029586,120]
[390992848,1760276346406,-500.0,0.00029586,120]
[390992849,1760276346459,-500.0,0.00029586,120]
[390992850,1760276346515,-500.0,0.00029586,120]
[390992851,1760276346572,-500.0,0.00029586,120]
[390992852,1760276346628,-500.0,0.00029586,120]
[390992853,1760276346683,-500.0,0.00029586,120]
[390992854,1760276346748,-500.0,0.00029586,120]
[390992855,1760276346812,-500.0,0.00029586,120]
[390992856,1760276346876,-500.0,0.00029586,120]
[390992857,1760276346937,-500.0,0.00029586,120]
[390992858,1760276346999,-500.0,0.00029586,120]
[390992859,1760276347060,-500.0,0.00029586,120]
[390992860,1760276347123,-500.0,0.00029586,120]
[390992861,1760276347190,-500.0,0.00029586,120]
[390992862,1760276347258,-500.0,0.00029586,120]
[390992863,1760276347324,-48.09984273,0.00029586,120]
[390992869,1760276389072,7565.25,0.00027397,120]
[390992877,1760276419075,-168.37696657,0.00013921,2]
[390992891,1760276518970,-169.97303343,0.00013921,2]
[390992892,1760276518993,-83.95182773,0.00014189,2]
[390992916,1760276605775,-171.24740541,0.0001378,2]
[390992925,1760276618420,-28.75259459,0.0001378,2]
[390992926,1760276618444,-2000.0,0.00013784,2]
[390992927,1760276618467,-161.0,0.00013787,2]
[390992929,1760276618490,-2000.0,0.00014142,2]
[390992930,1760276618513,-1425.45313916,0.00014142,2]
[390992931,1760276618537,-79.19198866,0.00014189,2]
[390992932,1760276618560,-234.74213454,0.00014457,2]
[390992933,1760276618585,-533.0,0.00014525,2]
[390992934,1760276618610,-259.0,0.00014581,2]
[390992935,1760276618634,-259.0,0.00014664,2]
[390992936,1760276618659,-774.62307092,0.00014699,2]
[390992937,1760276618683,-300.0,0.00014699,2]
[390992938,1760276618712,-150.0,0.00014699,2]
[390992939,1760276618736,-150.99,0.000147,2]
[390992940,1760276618760,-9999.99,0.000147,2]
[390992941,1760276618783,-187.50553003,0.000147,2]
[390992942,1760276618807,-10068.77,0.000147,2]
[390992943,1760276618831,-9488.18,0.000147,2]
[390992944,1760276618854,-9999.99,0.000147,2]
[390992945,1760276618876,-1802.1525,0.000147,2]
[390992946,1760276618900,-917.05149534,0.000147,2]
[390992947,1760276618923,-188.85916824,0.000147,2]
[390992948,1760276618947,-150.99,0.00014722,2]
[390992949,1760276618970,-343.1,0.00014722,2]
[390992950,1760276618993,-999.99,0.00014722,2]
[390992952,1760276619018,-917.05149527,0.00014722,2]
[390992953,1760276619042,-158.73721436,0.00014742,2]
[390992954,1760276619067,-2500.0,0.00014743,2]
[390992955,1760276619091,-917.05149527,0.00014744,2]
[390992956,1760276619118,-917.05149527,0.00014767,2]
[390992957,1760276619142,-1453.53101486,0.00014778,2]
[390992958,1760276619167,-5000.0,0.00014782,2]
[390992959,1760276619194,-259.0,0.00014787,2]
[390992960,1760276619219,-917.05149527,0.00014789,2]
[390992961,1760276619244,-322.6107,0.00014791,2]
[390992962,1760276619273,-151.0,0.00014791,2]
[390992963,1760276619307,-833.0484806,0.00014795,2]
[390992964,1760276619332,-7021.1344,0.00014799,2]
[390992965,1760276619358,-500.0,0.00014799,2]
[390992966,1760276619387,-500.0,0.00014799,2]
[390992967,1760276619414,-500.0,0.00014799,2]
[390992968,1760276619439,-500.0,0.00014799,2]
[390992969,1760276619465,-500.0,0.00014799,2]
[390992970,1760276619491,-500.0,0.00014799,2]
[390992971,1760276619517,-230.96041926,0.00014799,2]
[390992972,1760276619541,-148709.7990418,0.000148,2]
[390992973,1760276619564,-160.58944611,0.000148,2]
[390992974,1760276620014,-917.05149527,0.00014811,2]
[390992975,1760276620041,-917.05149527,0.00014833,2]
[390992976,1760276620065,-8025.0447571,0.00014843,2]
[390992977,1760276620087,-21197.467093,0.00014843,2]
[390992978,1760276620109,-300.0,0.00014843,2]
[390992979,1760276620133,-300.0,0.00014843,2]
[390992980,1760276620155,-402.168812,0.00014843,2]
[390992981,1760276620178,-995.8835674,0.00014845,2]
[390992982,1760276620203,-917.05149527,0.00014856,2]
[390992983,1760276620226,-150.0,0.00014856,2]
[390992984,1760276620247,-500.0,0.00014873,2]
[390992985,1760276620273,-840.12,0.00014877,2]
[390992986,1760276620295,-473.88,0.00014877,2]
[390992987,1760276620319,-917.05149527,0.00014878,2]
[390992988,1760276620341,-500.0,0.0001488,2]
[390992989,1760276620364,-489.24180682,0.00014881,2]
[390992990,1760276620386,-500.0,0.00014881,2]
[390992991,1760276620408,-500.0,0.00014881,2]
[390992992,1760276620431,-500.0,0.00014881,2]
[390992993,1760276620453,-485.42615787,0.00014881,2]
[390992994,1760276620475,-307.53133728,0.00014881,2]
[390992995,1760276620498,-251.00945654,0.00014881,2]
[390992996,1760276620520,-225.96661812,0.00014881,2]
[390992997,1760276620542,-151.0,0.00014884,2]
[390992998,1760276620574,-151.0,0.00014884,2]
[390992999,1760276620599,-151.0,0.00014884,2]
[390993000,1760276620624,-151.0,0.00014884,2]
[390993001,1760276620648,-151.0,0.00014884,2]
[390993002,1760276620673,-151.0,0.00014884,2]
[390993003,1760276620696,-151.0,0.00014884,2]
[390993004,1760276620720,-151.0,0.00014884,2]
[390993005,1760276620742,-151.0,0.00014884,2]
[390993006,1760276620765,-151.0,0.00014884,2]
[390993007,1760276620788,-151.0,0.00014884,2]
[390993008,1760276620811,-151.0,0.00014884,2]
[390993009,1760276620834,-151.0,0.00014884,2]
[390993010,1760276620857,-151.0,0.00014884,2]
[390993011,1760276620880,-151.0,0.00014884,2]
[390993012,1760276620908,-151.0,0.00014884,2]
[390993013,1760276620933,-151.0,0.00014884,2]
[390993014,1760276620957,-151.0,0.00014884,2]
[390993015,1760276620982,-151.0,0.00014884,2]
[390993016,1760276621005,-151.0,0.00014884,2]
[390993017,1760276621029,-7681.73890316,0.0001489,2]
[390993018,1760276621053,-192.39559878,0.00014891,2]
[390993019,1760276621077,-1000.0,0.00014898,2]
[390993020,1760276621101,-810.0,0.000149,2]
[390993021,1760276621124,-500.0,0.000149,2]
[390993022,1760276621148,-300000.0,0.000149,2]
[390993023,1760276621172,-151.0,0.000149,2]
[390993024,1760276621195,-151.0,0.000149,2]
[390993025,1760276621220,-151.0,0.000149,2]
[390993026,1760276621244,-151.0,0.000149,2]
[390993027,1760276621269,-151.0,0.000149,2]
[390993028,1760276621292,-151.0,0.000149,2]
[390993029,1760276621322,-151.0,0.000149,2]
[390993030,1760276621347,-151.0,0.000149,2]
[390993031,1760276621370,-166.238626,0.000149,2]
[390993032,1760276621394,-151.0,0.000149,2]
[390993033,1760276621417,-1899.687118,0.000149,2]
[390993034,1760276621440,-1899.687118,0.000149,2]
[390993035,1760276621465,-1899.687118,0.000149,2]
[390993036,1760276621488,-1899.687118,0.000149,2]
[390993037,1760276621510,-223.082902,0.000149,2]
[390993038,1760276621534,-151.0,0.000149,2]
[390993039,1760276621556,-1000.0,0.000149,2]
[390993040,1760276621579,-1000.0,0.000149,2]
[390993041,1760276621601,-188.85916824,0.000149,2]
[390993042,1760276621625,-917.05149527,0.000149,2]
[390993043,1760276621648,-474.32,0.00014904,2]
[390993044,1760276621672,-546.32,0.00014904,2]
[390993045,1760276621695,-180.97,0.00014904,2]
[390993046,1760276621718,-168.12,0.00014904,2]
[390993047,1760276621745,-413.34,0.00014904,2]
[390993048,1760276621769,-192.39559878,0.0001491,2]
[390993049,1760276621793,-10209.62025383,0.00014911,2]
[390993050,1760276621816,-463.13988292,0.00014916,2]
[390993051,1760276621841,-7681.73890316,0.00014921,2]
[390993052,1760276621865,-150.0,0.00014926,2]
[390993053,1760276621890,-10209.62025383,0.0001493,2]
[390993054,1760276621914,-192.39559878,0.00014937,2]
[390993055,1760276621938,-571.0,0.00014937,2]
[390993056,1760276621961,-1587.0,0.00014937,2]
[390993057,1760276621989,-604.0,0.00014937,2]
[390993058,1760276622012,-1309.0,0.00014937,2]
[390993059,1760276622036,-816.0,0.00014937,2]
[390993060,1760276622061,-463.13988292,0.00014945,2]
[390993061,1760276622084,-150.0,0.00014947,2]
[390993062,1760276622106,-150.0,0.00014947,2]
[390993063,1760276622129,-150.0,0.00014947,2]
[390993064,1760276622154,-150.0,0.00014947,2]
[390993065,1760276622176,-150.0,0.00014947,2]
[390993066,1760276622200,-150.0,0.00014947,2]
[390993067,1760276622224,-150.0,0.00014947,2]
[390993068,1760276622247,-2048.0,0.00014947,2]
[390993069,1760276622272,-749.0,0.00014947,2]
[390993070,1760276622294,-3405.0,0.00014947,2]
[390993071,1760276622318,-1266.0,0.00014947,2]
[390993072,1760276622343,-7681.73890316,0.00014954,2]
[390993073,1760276622366,-826.73764473,0.00014954,2]
[390993074,1760276622390,-463.13988292,0.00014957,2]
[390993075,1760276622414,-826.73764473,0.00014965,2]
[390993076,1760276622438,-500.0,0.00014973,2]
[390993077,1760276622460,-159.71849818,0.00014973,2]
[390993078,1760276622483,-500.0,0.00014973,2]
[390993079,1760276622506,-500.79619525,0.00014973,2]
[390993080,1760276622530,-500.0,0.00014973,2]
[390993081,1760276622553,-500.35392953,0.00014973,2]
[390993082,1760276622577,-500.34080257,0.00014973,2]
[390993083,1760276622600,-500.0,0.00014973,2]
[390993084,1760276622624,-192.73320674,0.00014973,2]
[390993085,1760276622647,-561.74002884,0.00014973,2]
[390993086,1760276622670,-500.0,0.00014973,2]
[390993087,1760276622693,-500.0,0.00014973,2]
[390993088,1760276622729,-500.0,0.00014973,2]
[390993089,1760276622755,-500.0,0.00014973,2]
[390993090,1760276622778,-160.29477245,0.00014973,2]
[390993091,1760276622802,-2790.691,0.00014973,2]
[390993093,1760276623262,-173.052,0.00014973,2]
[390993094,1760276623287,-1000.0,0.00014974,2]
[390993095,1760276623312,-826.73764473,0.00014976,2]
[390993096,1760276623334,-10209.62025383,0.00014979,2]
[390993097,1760276623358,-151.0,0.00014979,2]
[390993098,1760276623381,-151.0,0.00014979,2]
[390993099,1760276623410,-151.0,0.00014979,2]
[390993100,1760276623435,-151.0,0.00014979,2]
[390993101,1760276623457,-151.0,0.00014979,2]
[390993102,1760276623480,-151.0,0.00014979,2]
[390993103,1760276623503,-151.0,0.00014979,2]
[390993104,1760276623527,-151.0,0.00014979,2]
[390993105,1760276623555,-151.0,0.00014979,2]
[390993106,1760276623578,-151.0,0.00014979,2]
[390993107,1760276623600,-151.0,0.00014979,2]
[390993108,1760276623622,-151.0,0.00014979,2]
[390993109,1760276623644,-151.0,0.00014979,2]
[390993110,1760276623666,-151.0,0.00014979,2]
[390993111,1760276623691,-151.0,0.00014979,2]
[390993112,1760276623713,-151.0,0.00014979,2]
[390993113,1760276623741,-151.0,0.00014979,2]
[390993114,1760276623766,-151.0,0.00014979,2]
[390993115,1760276623788,-151.0,0.00014979,2]
[390993116,1760276623818,-150.0,0.00014982,2]
[390993117,1760276623843,-165.55947544,0.0001499,2]
[390993118,1760276623871,-500.0,0.00014998,2]
[390993119,1760276623893,-1000.0,0.00014999,2]
[390993120,1760276623915,-181.46405573,0.00014999,2]
[390993121,1760276623938,-150.0,0.00014999,2]
[390993122,1760276623959,-150.0,0.00014999,2]
[390993123,1760276623982,-500.0,0.00014999,2]
[390993124,1760276624004,-490.0,0.00014999,2]
[390993125,1760276624026,-150.0,0.00014999,2]
[390993126,1760276624049,-500.0,0.00014999,2]
[390993127,1760276624072,-200.0,0.00014999,2]
[390993128,1760276624093,-500.0,0.00014999,2]
[390993129,1760276624119,-63978.41461474,0.00015,2]
[390993228,1760276691993,-190.1183354,0.00013782,2]
[390993275,1760276736690,500.0,0.00027397,120]
[390993276,1760276736918,500.0,0.00027397,120]
[390993278,1760276737144,380.0,0.00027397,120]
[390993374,1760276800146,-109.8816646,0.00013782,2]
[390993375,1760276800168,-213.8693902,0.00013916,2]
[390993381,1760276807898,7250.03,0.00027397,120]
[390993461,1760276953074,152.3,6.972e-05,2]
[390993462,1760276953651,152.3,7.968e-05,2]
[390993463,1760276953862,152.3,8.965e-05,2]
[390993464,1760276954069,152.3,9.961e-05,2]
[390993465,1760276954332,152.3,0.00010957,2]
[390993466,1760276954579,152.3,0.00011953,2]
[390993474,1760276967811,-152.3,0.00012949,2]
[390993480,1760276980388,183.53,0.00011219,2]
[390993486,1760276991902,250.0,7.67e-05,2]
[390993489,1760276995248,2000.0,8.307e-05,2]
[390993608,1760277072259,-230.04729185,0.00013832,2]
[390993609,1760277072268,-549.39,0.000139,2]
[390993610,1760277072278,-1386.1306098,0.00013916,2]
[390993611,1760277072287,-150.0,0.00013932,2]
[390993612,1760277072296,-152.3,0.00013945,2]
[390993613,1760277072305,-856.483455,0.00014118,2]
[390993614,1760277072315,-187.50553003,0.0001455,2]
[390993615,1760277072324,-5033.0,0.0001465,2]
[390993616,1760277072333,-3407.01585744,0.00014698,2]
[390993617,1760277072343,-580.96730319,0.00014699,2]
[390993618,1760277072355,-1000.0,0.000147,2]
[390993619,1760277072365,-1000.0,0.000147,2]
[390993620,1760277072374,-336.0,0.00014762,2]
[390993621,1760277072383,-150.0,0.00014783,2]
[390993622,1760277072393,-3407.61155242,0.00014787,2]
[390993623,1760277072407,-5000.0,0.000148,2]
[390993624,1760277072416,-726.56,0.00014884,2]
[390993625,1760277072425,-2500.0,0.00014894,2]
[390993626,1760277072435,-1396.45875981,0.00014894,2]
[390993627,1760277072444,-167.92643339,0.00014894,2]
[390993628,1760277072454,-1738.0559799,0.00014894,2]
[390993629,1760277072463,-5316.32596053,0.00014894,2]
[390993630,1760277072472,-1738.05597989,0.00014895,2]
[390993631,1760277072486,-5316.32596053,0.00014895,2]
[390993632,1760277072495,-1738.05597989,0.00014895,2]
[390993633,1760277072504,-5316.32596053,0.00014895,2]
[390993634,1760277072514,-1738.05597989,0.00014896,2]
[390993635,1760277072524,-5316.32596053,0.00014896,2]
[390993636,1760277072533,-1738.05597989,0.00014897,2]
[390993637,1760277072543,-5316.32596053,0.00014897,2]
[390993638,1760277072552,-1738.05597989,0.00014897,2]
[390993639,1760277072562,-5316.32596053,0.00014897,2]
[390993640,1760277072571,-1738.05597989,0.00014898,2]
[390993641,1760277072581,-5316.32596053,0.00014898,2]
[390993642,1760277072590,-1738.05597989,0.00014899,2]
[390993643,1760277072599,-5316.32596053,0.00014899,2]
[390993644,1760277072608,-1738.05597989,0.00014899,2]
[390993645,1760277072617,-5316.32596053,0.00014899,2]
[390993646,1760277072627,-1396.45875982,0.000149,2]
[390993647,1760277072636,-229.32149352,0.000149,2]
[390993648,1760277072646,-1738.05597989,0.000149,2]
[390993649,1760277072655,-5316.32596053,0.000149,2]
[390993650,1760277072665,-150.0,0.00014904,2]
[390993651,1760277072675,-302.24,0.00014904,2]
[390993652,1760277072684,-175.87,0.00014904,2]
[390993653,1760277072693,-150.0,0.00014904,2]
[390993654,1760277072703,-474.45,0.00014904,2]
[390993655,1760277072711,-694.77,0.00014904,2]
[390993656,1760277072720,-150.0,0.00014904,2]
[390993657,1760277072730,-474.45,0.00014904,2]
[390993658,1760277072740,-694.77,0.00014904,2]
[390993659,1760277072749,-150.0,0.00014904,2]
[390993660,1760277072758,-694.77,0.00014904,2]
[390993661,1760277072767,-474.45,0.00014904,2]
[390993662,1760277072777,-150.0,0.00014904,2]
[390993663,1760277072786,-474.45,0.00014904,2]
[390993664,1760277072796,-694.77,0.00014904,2]
[390993665,1760277072807,-150.0,0.00014904,2]
[390993666,1760277072816,-474.45,0.00014904,2]
[390993667,1760277072825,-694.77,0.00014904,2]
[390993668,1760277072834,-546.32,0.00014904,2]
[390993669,1760277072843,-546.32,0.00014904,2]
[390993670,1760277072854,-694.77,0.00014904,2]
[390993671,1760277072863,-474.45,0.00014904,2]
[390993672,1760277072873,-546.32,0.00014904,2]
[390993673,1760277072882,-546.32,0.00014904,2]
[390993674,1760277072891,-168.12,0.00014904,2]
[390993675,1760277072900,-694.77,0.00014904,2]
[390993676,1760277072909,-474.45,0.00014904,2]
[390993677,1760277072918,-168.12,0.00014904,2]
[390993678,1760277072927,-474.45,0.00014904,2]
[390993679,1760277072937,-168.12,0.00014904,2]
[390993680,1760277072946,-474.45,0.00014904,2]
[390993681,1760277072955,-168.12,0.00014904,2]
[390993682,1760277072964,-474.45,0.00014904,2]
[390993683,1760277072974,-168.12,0.00014904,2]
[390993684,1760277072983,-474.45,0.00014904,2]
[390993685,1760277072993,-474.45,0.00014904,2]
[390993686,1760277073002,-355.37,0.00014904,2]
[390993687,1760277073011,-474.45,0.00014904,2]
[390993688,1760277073020,-474.45,0.00014904,2]
[390993689,1760277073029,-168.12,0.00014904,2]
[390993690,1760277073039,-474.45,0.00014904,2]
[390993691,1760277073049,-677.42,0.00014904,2]
[390993692,1760277073058,-179.18,0.00014904,2]
[390993693,1760277073067,-150.0,0.00014904,2]
[390993694,1760277073077,-3078.0,0.00014957,2]
[390993695,1760277073086,-3068.0,0.00014957,2]
[390993696,1760277073096,-687.0,0.00014957,2]
[390993697,1760277073106,-1081.0,0.00014957,2]
[390993698,1760277073115,-4121.0,0.00014957,2]
[390993699,1760277073125,-156.32794182,0.00014966,2]
[390993700,1760277073134,-500.0,0.00014973,2]
[390993701,1760277073144,-500.0,0.00014973,2]
[390993702,1760277073153,-502.74837759,0.00014973,2]
[390993703,1760277073163,-426.01148684,0.00014973,2]
[390993704,1760277073172,-500.0,0.00014973,2]
[390993705,1760277073182,-500.0,0.00014973,2]
[390993706,1760277073191,-500.0,0.00014973,2]
[390993707,1760277073200,-5033.0,0.00014973,2]
[390993708,1760277073210,-151.0,0.00014991,2]
[390993709,1760277073220,-151.0,0.00014991,2]
[390993710,1760277073229,-215.27193609,0.00014993,2]
[390993711,1760277073238,-175.70661958,0.00014993,2]
[390993712,1760277073248,-500.0,0.00014993,2]
[390993713,1760277073257,-500.64589745,0.00014993,2]
[390993714,1760277073267,-500.0,0.00014993,2]
[390993715,1760277073277,-389.79831051,0.00014993,2]
[390993716,1760277073287,-207715.08316475,0.00014994,2]
[390993717,1760277073300,-122212.72241627,0.00014994,2]
[390993718,1760277073369,-18386.21845076,0.00014994,2]
[390993719,1760277073381,-19561.73625683,0.00014994,2]
[390993720,1760277073394,-2010.049088,0.00014994,2]
[390993723,1760277075193,-4155.9276905,0.00014994,2]
[390993726,1760277079693,-360.0,0.00014994,2]
[390993727,1760277079835,-4594.10000004,0.00014994,2]
[390993729,1760277082418,-592.27505997,0.00014994,2]
[390993730,1760277082429,-1253.16948324,0.00014994,2]
[390993731,1760277082441,-4254.55545679,0.00014994,2]
[390993732,1760277082454,-630.05,0.00014994,2]
[390993733,1760277082465,-2190.06931942,0.00014994,2]
[390993734,1760277082622,-1319.84233781,0.00014994,2]
[390993736,1760277089100,-421.9602,0.00014994,2]
[390993737,1760277089112,-11411.40512944,0.00014994,2]
[390993738,1760277089189,-2792.15,0.00014994,2]
[390993739,1760277089230,-2008.583382,0.00014994,2]
[390993848,1760277210522,-519.27,0.00029589,120]
[390993849,1760277210578,-500.0,0.00029589,120]
[390993850,1760277210636,-500.0,0.00029589,120]
[390993851,1760277210697,-500.0,0.00029589,120]
[390993852,1760277210750,-500.0,0.00029589,120]
[390993853,1760277210804,-500.0,0.00029589,120]
[390993854,1760277210858,-500.0,0.00029589,120]
[390993855,1760277210906,-500.0,0.00029589,120]
[390993856,1760277210960,-500.0,0.00029589,120]
[390993857,1760277211014,-500.0,0.00029589,120]
[390993858,1760277211067,-500.0,0.00029589,120]
[390993859,1760277211115,-500.0,0.00029589,120]
[390993860,1760277211164,-500.0,0.00029589,120]
[390993861,1760277211223,-500.0,0.00029589,120]
[390993862,1760277211276,-500.0,0.00029589,120]
[390993863,1760277211334,-500.0,0.00029589,120]
[390993864,1760277211395,-500.0,0.00029589,120]
[390993865,1760277211454,-500.0,0.00029589,120]
[390993866,1760277211507,-298.25638685,0.00029589,120]
[390993867,1760277211560,-614.68,0.00029589,120]
[390993868,1760277211611,-614.68,0.00029589,120]
[390993869,1760277211664,-614.68,0.00029589,120]
[390993870,1760277211716,-563.45,0.00029589,120]
[390993871,1760277211768,-614.68,0.00029589,120]
[390993872,1760277211820,-563.45,0.00029589,120]
[390993873,1760277211870,-614.68,0.00029589,120]
[390993874,1760277211923,-563.45,0.00029589,120]
[390993875,1760277211980,-614.68,0.00029589,120]
[390993876,1760277212035,-563.45,0.00029589,120]
[390993877,1760277212087,-614.68,0.00029589,120]
[390993878,1760277212139,-563.45,0.00029589,120]
[390993879,1760277212199,-614.68,0.00029589,120]
[390993880,1760277212255,-563.45,0.00029589,120]
[390993881,1760277212306,-614.68,0.00029589,120]
[390993882,1760277212363,-563.45,0.00029589,120]
[390993883,1760277212426,-614.68,0.00029589,120]
[390993884,1760277212492,-614.68,0.00029589,120]
[390993885,1760277212556,-614.68,0.00029589,120]
[390993886,1760277212619,-614.68,0.00029589,120]
[390993887,1760277212679,-614.68,0.00029589,120]
[390993888,1760277212737,-614.68,0.00029589,120]
[390993889,1760277212794,-614.68,0.00029589,120]